bitfinex/quotes_BTCUSD_20251120
["timestamp","ask_amount","ask_price","bid_price","bid_amount"]
[1763653742260,4.03e-06,90377.0,90374.0,0.23612685]
[1763653742261,4.03e-06,90377.0,90368.0,0.01106586]
[1763653742476,4.03e-06,90377.0,90367.0,0.01106598]
[1763653742680,4.03e-06,90377.0,90363.0,0.22132917]
[1763653742681,0.22130013,90375.0,90360.0,0.01106684]
[1763653742896,0.01106537,90372.0,90363.0,0.01106647]
[1763653743119,0.01106537,90372.0,90361.0,0.02324082]
[1763653743120,0.01106586,90368.0,90361.0,0.02324082]
[1763653743322,0.22134232,90359.0,90355.0,0.01102406]
[1763653743531,0.22134208,90358.0,90355.0,0.01102406]
[1763653743739,0.22134208,90358.0,90335.0,0.01102406]
[1763653743741,0.01106892,90343.0,90335.0,0.01102406]
[1763653743951,0.01544,90341.0,90335.0,0.01102406]
[1763653744159,0.01148,90343.0,90335.0,0.01102406]
[1763653744288,0.01544,90341.0,90335.0,0.01102406]
[1763653744489,0.01544,90341.0,90336.0,0.01106978]
[1763653744721,0.01148,90343.0,90340.0,0.02571817]
[1763653744919,0.01148,90343.0,90340.0,0.02584023]
[1763653745392,0.01148,90343.0,90340.0,0.03690952]
[1763653745519,0.22136527,90349.0,90343.0,0.01106892]
[1763653745737,0.22512829,90348.0,90343.0,0.01106892]
[1763653745944,0.22132925,90364.0,90352.0,0.01106782]
[1763653746143,0.22134626,90357.0,90350.0,0.01102406]
[1763653746367,0.02653,90361.0,90354.0,0.01106757]
[1763653746568,0.01739443,90361.0,90359.0,0.22133728]
[1763653746796,0.02277,90374.0,90365.0,0.01106623]
[1763653746797,0.00376,90371.0,90365.0,0.01106623]
[1763653746999,0.22127924,90384.0,90371.0,0.01106549]
[1763653747199,0.02766006,90383.0,90374.0,0.01106512]
[1763653747397,0.22128329,90382.0,90376.0,0.01106488]
[1763653747735,0.00376,90384.0,90382.0,0.22128081]
[1763653747892,0.00376,90394.0,90389.0,0.01106329]
[1763653748095,0.00376,90394.0,90386.0,0.01106366]
[1763653748295,0.00376,90394.0,90387.0,0.02544265]
[1763653748296,0.22126263,90391.0,90387.0,0.02544265]
[1763653748494,0.00376,90394.0,90375.0,0.03761834]
[1763653748495,0.01106353,90387.0,90375.0,0.03761834]
[1763653748709,0.22128338,90382.0,90377.0,0.01106476]
[1763653748888,0.2212732,90386.0,90377.0,0.01106476]
[1763653748889,0.22127874,90384.0,90378.0,0.01106463]
[1763653749091,0.22127874,90384.0,90381.0,0.01106427]
[1763653749319,0.01106317,90390.0,90381.0,0.01106427]
[1763653749320,0.46890388,90420.0,90381.0,0.01102406]
[1763653749492,0.0194222,90393.0,90388.0,0.01106341]
[1763653749860,0.22127219,90387.0,90381.0,0.01102406]
[1763653750039,0.02765915,90386.0,90383.0,0.01106402]
[1763653750343,0.2212796,90384.0,90382.0,0.0265507]
[1763653750577,0.2212592,90392.0,90385.0,0.01106378]
[1763653750827,0.02346093,90391.0,90388.0,0.01106341]
[1763653750994,0.22126497,90390.0,90388.0,0.07567237]
[1763653751138,0.22127611,90385.0,90382.0,0.03761484]
[1763653751755,0.22127075,90387.0,90384.0,0.0110639]
[1763653751984,0.02277,90402.0,90389.0,0.01106329]
[1763653752333,0.22126021,90392.0,90388.0,0.01106341]
[1763653752536,0.2250148,90394.0,90391.0,0.01106304]
[1763653752740,0.00376,90394.0,90391.0,0.0220871]
[1763653753093,0.01734648,90418.0,90401.0,0.01106182]
[1763653753305,0.01734648,90418.0,90401.0,0.01102406]
[1763653753306,0.22121525,90410.0,90401.0,0.01102406]
[1763653753468,0.03140966,90417.0,90401.0,0.01102406]
[1763653753469,0.22123025,90404.0,90401.0,0.01102406]
[1763653753673,0.24888692,90403.0,90401.0,0.01102406]
[1763653753883,0.02765425,90402.0,90401.0,0.01102406]
[1763653754040,0.06586425,90402.0,90401.0,0.01102406]
[1763653754255,0.06660772,90402.0,90401.0,0.01102406]
[1763653755035,0.22128561,90381.0,90377.0,0.2212936]
[1763653755248,0.22128642,90381.0,90378.0,0.02544891]
[1763653755449,0.22129111,90379.0,90377.0,0.01102406]
[1763653755651,0.01106427,90381.0,90377.0,0.01102406]
[1763653755652,0.22129059,90381.0,90377.0,0.01102406]
[1763653755897,0.01148,90382.0,90380.0,0.22128789]
[1763653756113,0.01148,90382.0,90377.0,0.01102406]
[1763653756114,0.22129081,90379.0,90377.0,0.01102406]
[1763653756305,0.22131728,90368.0,90367.0,0.01102406]
[1763653756458,0.2213064,90373.0,90367.0,0.01114612]
[1763653756675,0.22131593,90369.0,90368.0,0.0265671]
[1763653757100,0.01106512,90374.0,90368.0,0.0265671]
[1763653757101,0.22130089,90375.0,90368.0,0.0265671]
[1763653757308,0.22131728,90368.0,90367.0,0.01114612]
[1763653758274,0.25952728,90368.0,90367.0,0.01114612]
[1763653758436,0.01544,90368.0,90367.0,0.01114612]
[1763653758640,0.01106561,90370.0,90367.0,0.01114612]
[1763653758912,0.221316,90369.0,90367.0,0.00012206]
[1763653759125,0.221316,90369.0,90368.0,0.02435886]
[1763653759327,0.221316,90369.0,90367.0,0.00012206]
[1763653760377,0.03821,90368.0,90367.0,0.00112206]
[1763653760540,0.04197,90368.0,90367.0,0.00112206]
[1763653760901,0.04197,90368.0,90367.0,0.00012206]
[1763653761087,0.0192,90368.0,90367.0,0.00012206]
[1763653761911,0.04197,90368.0,90367.0,0.00012206]
[1763653762868,0.0192,90368.0,90367.0,0.00012206]
[1763653763073,0.04197,90368.0,90367.0,0.00012206]
[1763653764096,0.36497,90368.0,90367.0,0.00012206]
[1763653765606,0.41707249,90368.0,90367.0,0.00012206]
[1763653766031,0.36497,90368.0,90367.0,0.00012206]
[1763653766216,0.36121,90368.0,90367.0,0.00012206]
[1763653766414,0.36497,90368.0,90367.0,0.00012206]
[1763653767076,0.01544,90368.0,90367.0,0.00012206]
[1763653767286,0.00376,90368.0,90367.0,0.00012206]
[1763653767499,0.00376,90368.0,90367.0,0.02858743]
[1763653767500,0.00476,90368.0,90367.0,0.02858743]
[1763653767718,0.00576,90368.0,90367.0,0.02858743]
[1763653767918,0.00576,90368.0,90367.0,0.00012206]
[1763653768325,0.00576,90368.0,90367.0,0.02987964]
[1763653768552,0.002,90368.0,90367.0,0.00036786]
[1763653768763,0.57425614,90410.0,90382.0,0.01106414]
[1763653768974,0.01148,90406.0,90384.0,0.2212781]
[1763653769187,0.01734851,90425.0,90384.0,0.2212781]
[1763653769188,0.00376,90403.0,90384.0,0.2212781]
[1763653769380,0.02493,90424.0,90384.0,0.2212781]
[1763653769584,0.00376,90411.0,90384.0,0.5442781]
[1763653770835,0.00376,90411.0,90384.0,0.5480381]
[1763653770836,0.0314115,90411.0,90384.0,0.5480381]
[1763653771069,0.0314115,90411.0,90384.0,0.5490381]
[1763653771296,0.00376,90411.0,90384.0,0.6221732]
[1763653771514,0.02493,90436.0,90419.0,0.22119244]
[1763653771738,0.02764416,90435.0,90419.0,0.27185138]
[1763653771896,0.02764416,90435.0,90433.0,0.22115818]
[1763653772133,0.01652028,90439.0,90430.0,0.01105827]
[1763653772134,0.00376,90433.0,90431.0,0.22115818]
[1763653772287,0.01913,90433.0,90431.0,0.22115818]
[1763653772492,0.01676719,90432.0,90431.0,0.22115818]
[1763653772689,0.01689331,90432.0,90431.0,0.29775577]
[1763653772892,0.00152331,90432.0,90431.0,0.32747749]
[1763653773104,0.00152331,90432.0,90431.0,0.33738473]
[1763653773354,0.00152331,90432.0,90431.0,0.29775577]
[1763653773632,0.00152331,90432.0,90431.0,0.62075577]
[1763653773833,0.01564,90455.0,90431.0,0.62075577]
[1763653773834,0.01564,90455.0,90454.0,0.22110686]
[1763653773991,0.05507014,90455.0,90454.0,0.22110686]
[1763653774392,0.03143014,90455.0,90454.0,0.22110686]
[1763653774654,0.03143014,90455.0,90454.0,0.23749954]
[1763653774842,0.01606014,90455.0,90454.0,0.23749954]
[1763653775029,0.00042014,90455.0,90454.0,0.23749954]
[1763653776241,0.0004,90470.0,90469.0,0.2210702]
[1763653776242,1e-08,90470.0,90469.0,0.2210702]
[1763653776441,1e-08,90470.0,90469.0,0.60638574]
[1763653776646,1e-08,90470.0,90469.0,0.70848823]
[1763653776818,1e-08,90470.0,90469.0,0.60262574]
[1763653777022,1e-08,90470.0,90469.0,0.60638574]
[1763653777222,1e-08,90470.0,90469.0,0.67500851]
[1763653777779,1e-08,90470.0,90469.0,0.67224851]
[1763653777977,1e-08,90470.0,90469.0,0.62390602]
[1763653778171,1e-08,90470.0,90469.0,0.68193736]
[1763653778391,0.0004,90490.0,90489.0,0.54402133]
[1763653778392,1e-08,90490.0,90489.0,0.54402133]
[1763653778519,1e-08,90490.0,90489.0,0.63440901]
[1763653778713,1e-08,90490.0,90489.0,0.58440901]
[1763653778929,1e-08,90490.0,90489.0,0.63440901]
[1763653779182,1e-08,90490.0,90489.0,0.6865115]
[1763653779543,1e-08,90490.0,90489.0,2.6865115]
[1763653779747,1e-08,90490.0,90489.0,2.76492573]
[1763653779949,1e-08,90490.0,90489.0,0.6865115]
[1763653780155,1e-08,90490.0,90489.0,0.6327515]
[1763653780421,1e-08,90490.0,90489.0,0.63640901]
[1763653780623,1e-08,90490.0,90489.0,0.23404539]
[1763653781056,1e-08,90490.0,90489.0,0.23604539]
[1763653781347,1e-08,90490.0,90489.0,0.23404539]
[1763653781546,1e-08,90490.0,90489.0,0.23304539]
[1763653781849,1e-08,90490.0,90489.0,0.23504539]
[1763653782916,1e-08,90490.0,90489.0,0.23404539]
[1763653783315,1e-08,90490.0,90489.0,0.55804539]
[1763653783499,1e-08,90490.0,90489.0,0.23304539]
[1763653783701,1e-08,90490.0,90489.0,0.23680539]
[1763653784518,1e-08,90490.0,90489.0,0.23304539]
[1763653784742,0.00172265,90490.0,90489.0,0.326897]
[1763653786229,0.00172265,90490.0,90489.0,0.327897]
[1763653786608,0.00172265,90490.0,90489.0,0.326897]
[1763653786609,1e-08,90490.0,90489.0,0.326897]
[1763653787012,1e-08,90490.0,90489.0,0.650897]
[1763653787217,1e-08,90490.0,90489.0,0.649897]
[1763653787446,1e-08,90490.0,90489.0,0.75199949]
[1763653787578,1e-08,90490.0,90489.0,0.70199949]
[1763653788214,1e-08,90490.0,90489.0,0.75675949]
[1763653788373,1e-08,90490.0,90489.0,2.79524051]
[1763653788585,1e-08,90490.0,90489.0,2.75575949]
[1763653789023,1e-08,90490.0,90489.0,0.75575949]
[1763653789672,1e-08,90490.0,90489.0,0.75475949]
[1763653789884,1e-08,90490.0,90489.0,0.78397709]
[1763653790090,1e-08,90490.0,90489.0,0.75675949]
[1763653790317,1e-08,90490.0,90489.0,0.75299949]
[1763653790526,1e-08,90490.0,90489.0,0.70675949]
[1763653790741,1e-08,90490.0,90489.0,0.70299949]
[1763653790938,1e-08,90490.0,90489.0,0.652897]
[1763653791173,1e-08,90490.0,90489.0,0.333657]
[1763653791999,1e-08,90490.0,90489.0,0.75875949]
[1763653792428,1e-08,90490.0,90489.0,0.70675949]
[1763653792626,1e-08,90490.0,90489.0,0.70099949]
[1763653792839,1e-08,90490.0,90489.0,0.70575949]
[1763653793045,1e-08,90490.0,90489.0,0.649897]
[1763653793257,1e-08,90490.0,90489.0,0.652657]
[1763653793452,1e-08,90490.0,90489.0,0.648897]
[1763653793691,1e-08,90490.0,90489.0,0.650897]
[1763653793900,1e-08,90490.0,90489.0,0.654657]
[1763653794110,1e-08,90490.0,90489.0,0.655657]
[1763653794321,1e-08,90490.0,90489.0,0.10487567]
[1763653794526,1e-08,90490.0,90489.0,0.01102406]
[1763653794741,1e-08,90490.0,90489.0,0.01302406]
[1763653795589,1e-08,90490.0,90489.0,0.01102406]
[1763653795802,1e-08,90490.0,90489.0,0.01302406]
[1763653796222,1e-08,90490.0,90489.0,0.01202406]
[1763653796431,1e-08,90490.0,90489.0,0.08339643]
[1763653797060,0.03901001,90490.0,90489.0,0.01202406]
[1763653797271,0.05089001,90490.0,90489.0,0.01202406]
[1763653797701,0.05089001,90490.0,90489.0,0.01102406]
[1763653798165,0.05089001,90490.0,90489.0,0.01202406]
[1763653798375,0.05089001,90490.0,90479.0,0.01102406]
[1763653798574,0.01537,90480.0,90479.0,0.02207634]
[1763653798790,0.01537,90480.0,90479.0,0.01102406]
[1763653798994,0.03901,90480.0,90479.0,0.01102406]
[1763653800475,0.22107753,90466.0,90464.0,0.0292176]
[1763653800765,0.01105399,90465.0,90460.0,0.0292176]
[1763653800969,0.01105399,90465.0,90454.0,0.01105534]
[1763653800970,0.03552,90465.0,90452.0,0.01105558]
[1763653801394,0.22107351,90468.0,90452.0,0.01105558]
[1763653801395,0.01105424,90463.0,90460.0,0.0292176]
[1763653801576,0.01105509,90456.0,90452.0,0.00012599]
[1763653801808,0.02725,90453.0,90452.0,0.00012599]
[1763653802018,0.2483593,90453.0,90452.0,0.00012599]
[1763653802224,0.2719993,90453.0,90452.0,0.00012599]
[1763653802434,0.34986961,90453.0,90452.0,0.00012599]
[1763653802615,0.2719993,90453.0,90452.0,0.00012599]
[1763653803019,0.5949993,90453.0,90452.0,0.00012599]
[1763653803471,0.05089,90453.0,90452.0,0.00012599]
[1763653803674,0.05465,90453.0,90452.0,0.00012599]
[1763653804438,0.03101,90453.0,90452.0,0.00012599]
[1763653804777,0.2772693,90453.0,90452.0,0.0017194]
[1763653805120,0.22114842,90437.0,90436.0,0.0292176]
[1763653805475,0.01105791,90433.0,90430.0,0.0292176]
[1763653805675,0.01105815,90431.0,90430.0,0.00042014]
[1763653805885,0.02751815,90431.0,90430.0,0.00042014]
[1763653806080,0.05157815,90431.0,90430.0,0.00042014]
[1763653807068,0.37457815,90431.0,90430.0,0.00042014]
[1763653808579,0.42668064,90431.0,90430.0,0.00042014]
[1763653808721,0.53584558,90431.0,90430.0,0.00042014]
[1763653808954,0.53584558,90431.0,90390.0,0.0292176]
[1763653808955,0.01106243,90396.0,90390.0,0.0292176]
[1763653809144,0.01141,90398.0,90393.0,0.0110628]
[1763653809501,0.01141,90398.0,90395.0,0.22125077]
[1763653809662,0.03512231,90397.0,90390.0,0.00012612]
[1763653809865,0.01106231,90397.0,90390.0,0.00012612]
[1763653810123,0.22125134,90395.0,90390.0,0.01118929]
[1763653810329,0.01106243,90396.0,90390.0,0.00012612]
[1763653810330,0.23772096,90391.0,90390.0,0.00012612]
[1763653810534,0.59271285,90391.0,90390.0,0.00012612]
[1763653810754,0.58854096,90391.0,90390.0,0.00012612]
[1763653810954,0.58854096,90391.0,90371.0,0.01102406]
[1763653810955,0.22130748,90372.0,90371.0,0.01102406]
[1763653811070,0.23271748,90372.0,90371.0,0.01102406]
[1763653811276,0.01141,90372.0,90371.0,0.01102406]
[1763653811533,0.00376,90378.0,90375.0,0.23236275]
[1763653811707,0.00376,90378.0,90377.0,0.22129524]
[1763653811905,0.00376,90378.0,90371.0,0.03651263]
[1763653812112,0.00376,90378.0,90376.0,0.22129538]
[1763653812288,0.01106476,90377.0,90352.0,0.0292176]
[1763653812499,0.01106512,90374.0,90364.0,0.01106635]
[1763653812768,0.01106537,90372.0,90364.0,0.232391]
[1763653812922,0.00376,90378.0,90366.0,0.23238827]
[1763653813147,0.2323616,90377.0,90367.0,0.02824299]
[1763653813326,0.22130258,90374.0,90367.0,0.02824299]
[1763653813526,0.02782,90378.0,90362.0,0.00012206]
[1763653813527,0.02406,90377.0,90364.0,0.01106635]
[1763653813921,0.02406,90377.0,90362.0,0.00012206]
[1763653813922,0.00376,90378.0,90376.0,0.22129655]
[1763653814096,0.00376,90378.0,90375.0,0.011065]
[1763653814668,0.00376,90377.0,90371.0,0.01106549]
[1763653814872,0.22505705,90377.0,90362.0,0.00024189]
[1763653815074,0.00376,90377.0,90368.0,0.01106586]
[1763653815275,0.01482476,90377.0,90369.0,0.04760854]
[1763653815441,0.01482476,90377.0,90364.0,0.23239342]
[1763653815442,0.01106512,90374.0,90365.0,0.01106623]
[1763653815792,0.00376,90377.0,90372.0,0.01106537]
[1763653816001,0.00388581,90377.0,90374.0,0.01106512]
[1763653816233,0.00388581,90377.0,90375.0,0.22129902]
[1763653816483,0.00012581,90377.0,90376.0,0.04868606]
[1763653816683,0.00012581,90377.0,90376.0,0.04892665]
[1763653816933,0.01106206,90399.0,90376.0,0.04892665]
[1763653816934,0.01141,90420.0,90408.0,0.01106096]
[1763653817141,0.01141,90420.0,90419.0,0.22119244]
[1763653817142,0.01153609,90420.0,90419.0,0.22119244]
[1763653817334,0.01153609,90420.0,90412.0,0.01106047]
[1763653817335,0.00012609,90420.0,90401.0,0.22123649]
[1763653817534,0.01141,90419.0,90410.0,0.01106072]
[1763653817754,0.23260319,90419.0,90403.0,0.01106157]
[1763653817928,0.02154524,90418.0,90415.0,0.01106011]
[1763653818169,0.02154524,90418.0,90410.0,0.22121427]
[1763653818170,0.01106023,90414.0,90402.0,0.0110617]
[1763653818388,0.01646,90403.0,90395.0,0.01106255]
[1763653818573,0.01646,90403.0,90392.0,0.23232089]
[1763653818574,0.01141,90399.0,90392.0,0.23232089]
[1763653818701,0.01106243,90396.0,90382.0,0.01106414]
[1763653818910,0.01141,90399.0,90384.0,0.01652028]
[1763653819140,0.026055,90398.0,90394.0,0.01106268]
[1763653819332,0.026055,90398.0,90396.0,0.22124808]
[1763653819579,0.01141,90399.0,90396.0,0.23231051]
[1763653819778,0.22121446,90410.0,90403.0,0.01106157]
[1763653819954,0.24886902,90409.0,90403.0,0.01106157]
[1763653820148,0.22122257,90407.0,90403.0,0.01106157]
[1763653820384,0.22122257,90407.0,90404.0,0.01106145]
[1763653820759,0.05171303,90406.0,90393.0,0.0110628]
[1763653820888,0.02765303,90406.0,90398.0,0.01106219]
[1763653821087,0.01105974,90418.0,90390.0,0.22126113]
[1763653821088,0.02764844,90421.0,90417.0,0.22119709]
[1763653821290,0.02406,90432.0,90417.0,0.23225695]
[1763653821520,0.02764538,90431.0,90419.0,0.22119244]
[1763653821698,0.00376,90430.0,90419.0,0.22119244]
[1763653822116,0.00376,90440.0,90419.0,0.22119244]
[1763653822319,0.03140263,90440.0,90419.0,0.22119244]
[1763653822526,0.03140263,90440.0,90418.0,0.01652028]
[1763653822527,0.22115553,90435.0,90418.0,0.01652028]
[1763653822771,0.02629549,90434.0,90418.0,0.22119452]
[1763653822971,0.02418609,90420.0,90400.0,0.03895272]
[1763653823123,0.01646,90419.0,90411.0,0.22121155]
[1763653823335,0.00012609,90420.0,90414.0,0.01106023]
[1763653823686,0.01106011,90415.0,90403.0,0.01106157]
[1763653823886,0.01106035,90413.0,90401.0,0.01652028]
[1763653824091,0.02764966,90417.0,90402.0,0.03001654]
[1763653824092,0.22121353,90411.0,90402.0,0.03001654]
[1763653824287,0.01105998,90416.0,90395.0,0.01482255]
[1763653824288,0.01106035,90413.0,90395.0,0.01106255]
[1763653824586,0.01106035,90413.0,90392.0,0.01106292]
[1763653824587,0.22122615,90406.0,90401.0,0.01106182]
[1763653824811,0.01106047,90412.0,90396.0,0.01106243]
[1763653825017,0.01482011,90415.0,90407.0,0.01106109]
[1763653825018,0.22121282,90411.0,90407.0,0.01106109]
[1763653825136,0.00376,90415.0,90409.0,0.01106084]
[1763653825349,0.00376,90415.0,90414.0,0.22120468]
[1763653825570,0.22131672,90420.0,90414.0,0.23226427]
[1763653825783,0.22131853,90420.0,90409.0,0.02654681]
[1763653825986,0.22124024,90400.0,90395.0,0.0292176]
[1763653826188,0.22123732,90401.0,90392.0,0.0292176]
[1763653826587,0.22123732,90401.0,90387.0,0.05001625]
[1763653826588,0.22126251,90391.0,90387.0,0.0292176]
[1763653826835,0.22127075,90387.0,90383.0,0.0292176]
[1763653827041,0.22128789,90380.0,90379.0,0.0292176]
[1763653827243,0.03512292,90392.0,90374.0,0.03895272]
[1763653827244,0.2212865,90381.0,90377.0,0.0292176]
[1763653827377,0.02406,90400.0,90383.0,0.01106402]
[1763653827573,0.02765517,90399.0,90389.0,0.01106329]
[1763653827773,0.01141,90402.0,90396.0,0.01106243]
[1763653827975,0.00376,90398.0,90395.0,0.01106255]
[1763653828495,0.00376,90398.0,90396.0,0.22147532]
[1763653828805,0.22122104,90408.0,90404.0,0.01106145]
[1763653828806,0.00376,90406.0,90404.0,0.01106145]
[1763653829006,0.00388607,90406.0,90404.0,0.01106145]
[1763653829214,0.00388607,90406.0,90405.0,0.0292176]
[1763653829457,0.00388607,90406.0,90405.0,0.2212267]
[1763653829654,0.00012607,90406.0,90405.0,0.06193575]
[1763653829777,0.00012607,90406.0,90404.0,0.22122695]
[1763653830220,0.22135195,90406.0,90404.0,0.03895272]
[1763653830622,0.22122914,90404.0,90403.0,0.03895272]
[1763653830826,0.22123404,90402.0,90401.0,0.03895272]
[1763653831001,0.00012607,90406.0,90400.0,0.05001466]
[1763653831200,0.00012607,90406.0,90404.0,0.03895272]
[1763653831708,0.00012607,90406.0,90405.0,0.03917557]
[1763653831876,0.00012607,90406.0,90405.0,0.07327215]
[1763653832143,0.00012607,90406.0,90405.0,0.03431943]
[1763653832363,0.00012607,90406.0,90405.0,0.36107943]
[1763653832576,0.00012607,90406.0,90405.0,0.35709658]
[1763653833688,0.00012607,90406.0,90405.0,0.35809658]
[1763653834321,0.00012607,90406.0,90405.0,0.43633567]
[1763653834533,0.00012607,90406.0,90405.0,0.43833567]
[1763653834739,0.00012607,90406.0,90405.0,0.43733567]
[1763653834939,0.00012607,90406.0,90405.0,0.35809658]
[1763653835146,0.00012607,90406.0,90405.0,0.35909658]
[1763653835568,0.44213978,90470.0,90442.0,0.0110568]
[1763653835569,0.05075525,90457.0,90442.0,0.0110568]
[1763653835772,0.01153,90448.0,90441.0,0.01105693]
[1763653835976,0.01153,90448.0,90445.0,0.01105644]
[1763653836187,0.01153,90448.0,90438.0,0.03963557]
[1763653836188,0.22113375,90443.0,90438.0,0.03963557]
[1763653836395,0.22114842,90437.0,90436.0,0.03963557]
[1763653836596,0.22115469,90435.0,90433.0,0.03963557]
[1763653836800,0.0236004,90457.0,90433.0,0.08493055]
[1763653837005,0.23220313,90439.0,90438.0,0.02971869]
[1763653837207,0.22114842,90437.0,90435.0,0.02971869]
[1763653837591,0.22114842,90437.0,90436.0,0.02971869]
[1763653837798,0.00376,90442.0,90436.0,0.02971869]
[1763653837993,0.22114719,90438.0,90436.0,0.02971869]
[1763653838206,0.22115086,90436.0,90434.0,0.02971869]
[1763653838404,0.22116798,90429.0,90428.0,0.02971869]
[1763653838675,0.23620798,90429.0,90428.0,0.02971869]
[1763653838843,0.23620798,90429.0,90427.0,0.02971869]
[1763653838844,0.03822,90429.0,90427.0,0.02971869]
[1763653839000,0.02212245,90428.0,90427.0,0.02971869]
[1763653839240,0.22117287,90427.0,90426.0,0.02971869]
[1763653839442,0.22116836,90429.0,90426.0,0.03665412]
[1763653839658,0.24084653,90428.0,90426.0,0.00693543]
[1763653839884,0.00376,90430.0,90427.0,0.01105864]
[1763653840083,0.00376,90430.0,90428.0,0.22116921]
[1763653840305,0.22113238,90444.0,90440.0,0.01105705]
[1763653840452,0.00376,90443.0,90439.0,0.02970311]
[1763653840662,0.00376,90443.0,90431.0,0.22116245]
[1763653840663,0.22113864,90441.0,90438.0,0.02970311]
[1763653840872,0.22114353,90439.0,90438.0,0.02970311]
[1763653841084,0.22114353,90439.0,90438.0,0.02970185]
[1763653841303,0.22114705,90438.0,90434.0,0.03963557]
[1763653841519,0.23267842,90439.0,90433.0,0.05069348]
[1763653841723,0.01153,90439.0,90438.0,0.02970747]
[1763653841958,0.00388605,90444.0,90441.0,0.23219472]
[1763653842172,0.00388605,90444.0,90438.0,0.07089648]
[1763653842173,0.00388605,90444.0,90439.0,0.03963557]
[1763653842398,0.00388605,90444.0,90442.0,0.22113504]
[1763653842626,0.00388605,90444.0,90439.0,0.03963557]
[1763653842827,0.323,90436.0,90434.0,0.02970997]
[1763653843032,0.22120223,90415.0,90414.0,0.02970997]
[1763653843248,0.26318223,90415.0,90414.0,0.00112955]
[1763653844581,0.36198272,90415.0,90414.0,0.00112955]
[1763653844760,0.26318223,90415.0,90414.0,0.00112955]
[1763653846213,0.23624223,90415.0,90414.0,0.00112955]
[1763653846410,0.22119074,90421.0,90414.0,0.00112955]
[1763653846411,0.00376,90417.0,90414.0,0.00112955]
[1763653846618,0.00376,90417.0,90414.0,0.01106023]
[1763653846882,0.00376,90417.0,90410.0,0.01106072]
[1763653846883,0.22120748,90413.0,90410.0,0.01106072]
[1763653847085,0.01504,90415.0,90408.0,0.01106096]
[1763653847294,0.22122098,90408.0,90407.0,0.05945336]
[1763653847495,0.22122914,90404.0,90403.0,0.05945336]
[1763653847711,0.22124138,90399.0,90398.0,0.05945336]
[1763653847921,0.22124138,90399.0,90398.0,0.00012607]
[1763653848917,0.23277138,90399.0,90398.0,0.00012607]
[1763653849633,0.01153,90399.0,90398.0,0.00012607]
[1763653849992,0.23277138,90399.0,90398.0,0.00012607]
[1763653850468,0.23277138,90399.0,90385.0,0.22127494]
[1763653850469,0.22126341,90390.0,90387.0,0.05945336]
[1763653850672,0.22126341,90390.0,90377.0,0.05945336]
[1763653850673,0.22128299,90382.0,90377.0,0.05945336]
[1763653850877,0.22129089,90379.0,90377.0,0.05945336]
[1763653851085,0.01106366,90386.0,90377.0,0.05945336]
[1763653851086,0.00999999,90430.0,90378.0,0.07620144]
[1763653851313,0.22124685,90397.0,90393.0,0.04083771]
[1763653851510,0.22125117,90395.0,90394.0,0.02977491]
[1763653851890,0.22124732,90397.0,90393.0,0.04083771]
[1763653852103,0.01105986,90417.0,90401.0,0.01106182]
[1763653852443,0.00376,90416.0,90411.0,0.02977417]
[1763653852582,0.00376,90416.0,90412.0,0.00629573]
[1763653852967,0.00376,90416.0,90413.0,0.01106035]
[1763653853182,0.00376,90416.0,90412.0,0.0173562]
[1763653853183,0.22120223,90415.0,90412.0,0.00629573]
[1763653853536,0.22120933,90413.0,90410.0,0.05954982]
[1763653853695,0.00376,90416.0,90413.0,0.01106035]
[1763653853896,0.00376,90416.0,90414.0,0.22120411]
[1763653854378,0.00012602,90418.0,90413.0,0.23226476]
[1763653854379,0.00012602,90418.0,90417.0,0.22119734]
[1763653854515,0.00376,90417.0,90411.0,0.0110606]
[1763653854732,0.00376,90417.0,90414.0,0.23226408]
[1763653855118,0.22120298,90415.0,90410.0,0.01106072]
[1763653855322,0.22121077,90412.0,90407.0,0.2322813]
[1763653855530,0.00376,90417.0,90406.0,0.05954982]
[1763653855531,0.01504,90408.0,90406.0,0.05954982]
[1763653855757,0.01504,90408.0,90391.0,0.323]
[1763653855758,0.23229574,90402.0,90399.0,0.05954982]
[1763653855967,0.23229574,90402.0,90390.0,0.05954982]
[1763653855968,0.22126096,90391.0,90390.0,0.05954982]
[1763653856180,0.22125889,90392.0,90389.0,0.07061311]
[1763653856388,0.01153,90399.0,90389.0,0.05954982]
[1763653856851,0.22124383,90398.0,90389.0,0.2808145]
[1763653857067,0.22126166,90391.0,90389.0,0.05954982]
[1763653857275,0.22126586,90389.0,90388.0,0.05954982]
[1763653857478,0.22126586,90389.0,90385.0,0.05954982]
[1763653857479,0.2212732,90386.0,90385.0,0.05954982]
[1763653857687,0.2212732,90386.0,90383.0,0.05954982]
[1763653857899,0.2212732,90386.0,90383.0,0.01106402]
[1763653858355,0.00376,90388.0,90385.0,0.00199221]
[1763653858600,0.00376,90388.0,90385.0,0.01106378]
[1763653858810,0.01106366,90386.0,90380.0,0.05954982]
[1763653859034,0.22128544,90381.0,90379.0,0.05954982]
[1763653859279,0.22128565,90382.0,90379.0,0.05132152]
[1763653859280,0.22128354,90382.0,90379.0,0.05132152]
[1763653859475,0.22128712,90381.0,90379.0,0.05132152]
[1763653859623,0.22128917,90380.0,90376.0,0.0706147]
[1763653859945,0.22128136,90383.0,90380.0,0.01106439]
[1763653860146,0.00376,90388.0,90387.0,0.22127075]
[1763653860374,0.00376,90388.0,90385.0,0.01106378]
[1763653860375,0.22127075,90387.0,90385.0,0.02976787]
[1763653860683,0.22127075,90387.0,90356.0,0.09909921]
[1763653860684,0.22128055,90383.0,90380.0,0.02976787]
[1763653860898,0.24738971,90381.0,90380.0,0.00012581]
[1763653861539,0.27056971,90381.0,90380.0,0.00012581]
[1763653861757,0.38648475,90381.0,90380.0,0.00012581]
[1763653862025,0.22134422,90357.0,90356.0,0.00476787]
[1763653862230,0.22134422,90357.0,90320.0,0.22163369]
[1763653862231,0.01106806,90350.0,90332.0,0.01107027]
[1763653862447,0.221402,90334.0,90332.0,0.00041823]
[1763653862655,0.02259721,90357.0,90333.0,0.22140303]
[1763653862815,0.00376,90355.0,90352.0,0.01106782]
[1763653863016,0.01153,90357.0,90355.0,0.22134826]
[1763653863180,0.2213517,90354.0,90347.0,0.01106843]
[1763653863389,0.00376,90356.0,90353.0,0.0110677]
[1763653863835,0.22510768,90356.0,90351.0,0.01106794]
[1763653864044,0.22510753,90356.0,90353.0,0.0110677]
[1763653864241,0.01106794,90351.0,90328.0,0.05954982]
[1763653864479,0.22139771,90336.0,90333.0,0.03829681]
[1763653864704,0.2251543,90337.0,90325.0,0.01107113]
[1763653864851,0.23271987,90335.0,90329.0,0.01107064]
[1763653865064,0.01132,90355.0,90333.0,0.02442395]
[1763653865240,0.01153,90399.0,90374.0,0.01106512]
[1763653865241,0.02356,90391.0,90374.0,0.01106512]
[1763653865436,0.01153,90399.0,90398.0,0.22124383]
[1763653865635,0.01153,90399.0,90386.0,0.01106366]